bitfinex/quotes_ETHUSD_20251124
["timestamp","ask_amount","ask_price","bid_price","bid_amount"]
[1763944221157,0.3991,2786.8,2785.4,0.1]
[1763944221362,0.232,2786.7,2785.1,0.1]
[1763944221659,0.3996,2785.1,2784.5,0.1]
[1763944221859,0.232,2785.0,2784.5,0.1]
[1763944222316,0.232,2785.0,2784.4,0.1085]
[1763944222317,0.495,2784.9,2784.2,0.1]
[1763944222717,0.6902,2786.1,2784.9,0.495]
[1763944222924,0.6902,2786.1,2785.0,3.21858785]
[1763944223150,0.6902,2786.1,2785.6,0.1]
[1763944223456,0.1952,2786.1,2785.6,0.1]
[1763944223660,0.469,2785.7,2785.1,0.77944335]
[1763944223877,0.469,2785.7,2784.0,0.0991]
[1763944223878,0.469,2785.7,2785.0,0.1]
[1763944224078,0.469,2785.7,2785.1,0.1085]
[1763944224283,0.469,2785.7,2784.7,0.1]
[1763944224284,0.964,2785.7,2784.7,0.1]
[1763944224454,0.964,2785.7,2784.4,0.1]
[1763944224654,0.964,2785.7,2784.3,0.4153]
[1763944224655,0.727,2785.6,2784.9,0.1]
[1763944225079,0.727,2785.6,2784.3,0.4153]
[1763944225080,0.495,2785.5,2784.8,0.1]
[1763944225251,0.232,2785.4,2784.8,0.1]
[1763944225846,0.232,2785.3,2784.8,0.1]
[1763944226286,0.727,2785.3,2784.8,0.1]
[1763944226454,0.495,2785.2,2784.8,0.1]
[1763944227185,0.495,2785.2,2784.7,0.1]
[1763944227673,0.495,2785.2,2784.6,0.1]
[1763944228264,0.495,2785.2,2784.5,0.101]
[1763944229664,0.495,2785.2,2784.5,0.001]
[1763944229857,0.6642,2784.6,2784.5,0.001]
[1763944230271,1.1592,2784.6,2784.5,0.001]
[1763944230487,0.6642,2784.6,2784.5,0.001]
[1763944230664,0.232,2784.7,2784.5,0.101]
[1763944230858,0.1952,2784.9,2784.5,0.101]
[1763944230859,0.4272,2784.9,2784.5,0.101]
[1763944231085,0.1952,2785.1,2784.5,0.101]
[1763944231284,0.232,2785.0,2784.5,0.101]
[1763944231798,0.469,2784.6,2784.5,0.001]
[1763944232616,0.964,2784.6,2784.5,0.001]
[1763944233890,0.964,2784.6,2784.3,0.001]
[1763944234097,0.3851,2784.4,2784.3,0.001]
[1763944234707,0.8801,2784.4,2784.0,0.001]
[1763944234921,0.4681,2784.1,2784.0,0.001]
[1763944235405,1.15010926,2784.1,2784.0,0.001]
[1763944235572,1.38210926,2784.1,2784.0,0.001]
[1763944236079,1.15010926,2784.1,2784.0,0.001]
[1763944236279,1.1951,2784.1,2784.0,0.001]
[1763944239832,0.7001,2784.1,2784.0,0.001]
[1763944240019,0.232,2784.1,2784.0,0.001]
[1763944240198,0.7119,2784.1,2784.0,0.001]
[1763944240729,0.4799,2784.1,2784.0,0.001]
[1763944240928,1.171,2784.1,2784.0,0.001]
[1763944247739,0.4799,2784.1,2784.0,0.001]
[1763944248064,0.002,2784.3,2784.0,0.001]
[1763944248266,0.002,2784.3,2784.0,0.4173]
[1763944248267,0.232,2784.2,2784.0,0.4173]
[1763944248432,0.232,2784.1,2784.0,0.4173]
[1763944249441,0.6528,2784.1,2784.0,0.001]
[1763944250448,0.657,2784.1,2784.0,0.001]
[1763944251265,0.98596784,2784.1,2784.0,0.001]
[1763944252666,22.84623248,2784.1,2784.0,0.001]
[1763944252860,14.34115485,2784.1,2784.0,0.001]
[1763944253370,10.49588985,2784.1,2784.0,0.001]
[1763944253579,4.93845467,2784.1,2784.0,0.001]
[1763944253872,7.13462548,2784.1,2784.0,0.001]
[1763944254097,5.06339067,2784.1,2784.0,0.001]
[1763944254260,7.19022648,2784.1,2784.0,0.001]
[1763944254461,6.67518655,2784.1,2784.0,0.001]
[1763944254690,3.95079436,2784.1,2784.0,0.001]
[1763944254895,4.94586565,2784.1,2784.0,0.001]
[1763944255199,7.15476465,2784.1,2784.0,0.001]
[1763944255767,8.28192565,2784.1,2784.0,0.001]
[1763944255975,0.4701,2783.2,2782.5,0.001]
[1763944256182,0.90699264,2782.9,2782.5,0.001]
[1763944256378,0.0026,2782.2,2781.9,0.001]
[1763944256708,5.03181231,2782.0,2781.9,0.001]
[1763944256867,7.90159486,2782.0,2781.9,0.001]
[1763944257256,8.13359486,2782.0,2781.9,0.001]
[1763944257461,9.04163512,2782.0,2781.9,0.001]
[1763944257681,10.6470636,2782.0,2781.9,0.001]
[1763944258765,10.4826996,2782.0,2781.9,0.001]
[1763944259275,10.4826996,2782.0,2780.0,0.1862]
[1763944259276,10.862402,2781.8,2780.3,0.1862]
[1763944259461,0.90699264,2781.5,2780.3,0.1862]
[1763944259657,1.46535654,2781.7,2780.3,0.1862]
[1763944259658,0.32896784,2781.4,2780.3,0.1862]
[1763944259894,1.54978614,2781.6,2780.3,0.1862]
[1763944260104,0.90699264,2781.3,2780.3,0.1862]
[1763944260265,0.232,2781.2,2780.3,0.1862]
[1763944260467,0.4665,2781.1,2780.0,0.1862]
[1763944260801,0.4665,2781.7,2781.1,0.67]
[1763944261000,0.232,2781.6,2781.1,0.67]
[1763944261524,0.232,2781.6,2780.8,0.4599]
[1763944261709,0.461,2781.2,2780.3,0.4599]
[1763944261889,0.6985,2781.6,2780.3,0.4599]
[1763944262219,0.4665,2781.5,2780.3,0.4599]
[1763944262583,0.4665,2781.5,2780.3,0.5599]
[1763944262791,0.4665,2782.5,2781.4,0.67]
[1763944263021,0.232,2782.4,2781.5,0.4838]
[1763944263229,0.04492685,2782.3,2781.2,0.1862]
[1763944263387,0.4665,2782.3,2781.2,0.1862]
[1763944264009,0.4665,2782.3,2781.2,0.6461]
[1763944264287,0.90699264,2782.2,2781.2,0.6461]
[1763944264487,0.90699264,2782.2,2781.2,0.1862]
[1763944264711,0.4665,2782.1,2781.2,0.1862]
[1763944264913,0.04492524,2782.4,2781.3,0.4599]
[1763944265242,0.4665,2783.4,2782.3,0.67]
[1763944265524,0.4665,2783.4,2782.4,0.4838]
[1763944265687,0.232,2783.3,2782.4,0.9437]
[1763944265891,0.04491233,2783.2,2782.4,0.4838]
[1763944266092,0.232,2783.3,2782.4,0.4838]
[1763944266829,0.52560103,2783.9,2782.4,0.9654]
[1763944267033,0.232,2783.4,2782.5,0.1]
[1763944267331,0.4807,2784.3,2782.9,0.1]
[1763944267495,0.232,2784.2,2783.1,0.1]
[1763944267701,0.4827,2784.6,2783.1,0.1]
[1763944267897,14.089221,2784.4,2782.7,0.4816]
[1763944268098,4.7405,2784.2,2782.7,0.4816]
[1763944268296,1.8964432,2784.3,2782.7,0.4816]
[1763944268603,0.4807,2784.2,2782.8,0.1]
[1763944268932,0.4827,2784.6,2783.1,0.1]
[1763944269148,0.232,2784.1,2783.1,0.1]
[1763944269333,0.4827,2784.6,2783.2,0.6676]
[1763944269540,0.27689136,2784.5,2783.2,0.6676]
[1763944270147,1.38769264,2784.4,2782.9,0.4816]
[1763944270308,1.10381495,2784.3,2783.1,0.186]
[1763944270506,1.05892037,2784.3,2783.1,0.186]
[1763944270708,0.232,2784.2,2783.2,0.4816]
[1763944270945,0.232,2784.2,2783.1,0.186]
[1763944271140,0.4807,2784.1,2783.1,0.186]
[1763944271348,0.4807,2784.1,2783.1,0.6676]
[1763944271515,0.232,2784.2,2783.1,0.7676]
[1763944271715,0.232,2784.2,2783.2,0.4816]
[1763944272028,0.52758975,2784.6,2783.2,0.4816]
[1763944272225,0.232,2784.5,2783.2,0.4816]
[1763944272788,0.4827,2784.6,2783.3,0.1865]
[1763944272789,3.89664464,2784.3,2783.3,0.1865]
[1763944273051,0.44222376,2784.2,2782.8,0.4816]
[1763944273222,0.04489781,2784.1,2782.8,0.4816]
[1763944273710,0.4807,2784.0,2782.8,0.4816]
[1763944274114,0.1999,2783.9,2782.8,0.4816]
[1763944274623,0.6806,2783.9,2782.8,0.4816]
[1763944275346,0.6806,2783.9,2782.3,0.1862]
[1763944275347,0.4807,2783.8,2782.4,0.4816]
[1763944275535,0.27690426,2783.7,2782.4,0.4816]
[1763944275737,0.1999,2783.9,2782.5,0.1]
[1763944275952,0.232,2783.6,2782.7,0.1]
[1763944276124,0.232,2783.5,2782.8,0.4816]
[1763944276426,0.232,2783.4,2782.8,0.4816]
[1763944277076,0.232,2783.3,2782.8,0.4816]
[1763944277483,0.232,2783.3,2783.2,0.6736]
[1763944280309,0.232,2783.3,2782.8,0.4816]
[1763944280454,0.04491233,2783.2,2782.4,0.4816]
[1763944280659,0.52561233,2783.2,2782.3,0.1862]
[1763944280860,0.4807,2783.2,2782.3,0.1862]
[1763944281190,0.4807,2783.2,2782.3,0.6678]
[1763944281392,0.04491394,2783.1,2782.3,0.6678]
[1763944281576,0.90699264,2783.8,2782.3,0.6678]
[1763944281577,0.4807,2783.8,2783.1,0.6736]
[1763944282191,0.002,2783.4,2782.5,0.4816]
[1763944282608,0.002,2783.4,2782.5,0.5816]
[1763944282813,0.002,2783.4,2783.3,0.186]
[1763944282962,0.234,2783.4,2783.3,0.6736]
[1763944284007,0.002,2783.4,2783.3,1.2552]
[1763944284293,0.002,2783.7,2783.6,0.1]
[1763944284609,0.002,2784.0,2783.9,0.1]
[1763944284771,0.002,2784.0,2783.9,0.5876]
[1763944284989,0.002,2784.0,2783.9,1.0692]
[1763944286459,0.002,2784.6,2783.9,1.0692]
[1763944286683,0.002,2784.6,2784.5,0.7741]
[1763944287059,0.002,2784.6,2784.5,1.2557]
[1763944288393,0.002,2784.6,2784.5,1.1557]
[1763944288582,0.002,2784.6,2784.5,1.2557]
[1763944288973,0.002,2784.9,2784.6,0.90699264]
[1763944289174,0.4807,2786.5,2784.8,0.5876]
[1763944289362,0.1999,2787.0,2785.6,0.1]
[1763944289363,0.4807,2786.9,2785.6,0.1]
[1763944289564,0.4807,2786.9,2785.9,0.1]
[1763944289775,0.1999,2787.0,2785.2,0.4816]
[1763944289978,0.232,2786.9,2786.1,0.1]
[1763944290272,0.232,2786.9,2786.4,0.1]
[1763944290468,0.232,2786.9,2786.5,0.1842]
[1763944290669,0.04485431,2786.8,2786.2,0.1865]
[1763944291409,0.232,2786.9,2786.2,0.7681]
[1763944291643,0.1999,2787.5,2786.8,0.4876]
[1763944291846,0.232,2787.4,2787.1,0.184]
[1763944292012,0.002,2787.7,2787.1,0.184]
[1763944292208,0.002,2787.7,2787.3,0.4876]
[1763944292510,0.002,2787.7,2787.6,0.4876]
[1763944292848,0.002,2788.0,2787.6,0.4876]
[1763944292849,0.002,2788.0,2787.6,0.5876]
[1763944293012,0.002,2788.0,2787.5,0.90699264]
[1763944293013,0.002,2788.0,2787.9,0.5876]
[1763944293415,0.002,2788.0,2787.9,1.0692]
[1763944293749,0.002,2788.3,2788.0,0.90699264]
[1763944293910,0.002,2789.2,2788.4,5.02461231]
[1763944294114,0.002,2789.2,2789.1,0.2865]
[1763944294340,0.002,2789.5,2789.4,0.1]
[1763944294541,0.002,2789.5,2789.1,0.1865]
[1763944294713,0.002,2789.5,2788.8,0.1865]
[1763944294918,0.232,2789.4,2788.8,0.1865]
[1763944295327,0.002,2789.5,2788.8,0.2865]
[1763944295652,0.232,2789.4,2788.8,0.6681]
[1763944295811,0.232,2789.4,2788.8,0.7681]
[1763944296522,0.232,2789.4,2788.8,0.2865]
[1763944296832,0.7015,2789.4,2788.5,0.1]
[1763944297750,0.232,2789.3,2788.8,0.1]
[1763944298139,0.232,2789.3,2788.8,0.5533]
[1763944299014,0.232,2789.3,2788.8,0.1]
[1763944299234,0.7015,2789.3,2788.4,0.5533]
[1763944299449,0.7015,2789.3,2788.8,0.001]
[1763944300764,0.1918,2788.9,2788.8,0.001]
[1763944301062,0.4228,2788.9,2788.8,0.001]
[1763944301364,0.8923,2788.9,2788.8,0.001]
[1763944302340,0.4228,2788.9,2788.8,0.001]
[1763944302885,0.8923,2788.9,2788.8,0.001]
[1763944304370,1.2939,2788.9,2788.8,0.001]
[1763944304573,1.0629,2788.9,2788.8,0.001]
[1763944304781,1.2834,2788.9,2788.8,0.001]
[1763944305268,0.002,2789.5,2788.8,0.001]
[1763944305269,0.002,2789.5,2788.8,0.4809]
[1763944305455,0.002,2789.5,2789.2,0.1]
[1763944305663,0.002,2789.5,2789.1,0.1]
[1763944305838,0.6038,2788.9,2788.8,0.001]
[1763944306040,0.8348,2788.9,2788.8,0.001]
[1763944306236,1.2933,2788.9,2788.8,0.001]
[1763944306534,1.2933,2788.9,2788.2,0.001]
[1763944306535,4.251524,2788.7,2788.2,0.001]
[1763944306757,3.529946,2788.3,2788.2,0.001]
[1763944306958,13.651309,2788.1,2786.3,0.5579]
[1763944307193,4.20127864,2787.8,2786.3,0.5579]
[1763944307398,0.90699264,2787.8,2786.3,0.4579]
[1763944307600,1.15926123,2787.7,2786.5,0.1]
[1763944307807,1.15926123,2787.7,2786.3,0.5579]
[1763944308004,0.459,2787.6,2786.3,0.5579]
[1763944308502,0.459,2787.6,2786.2,0.1865]
[1763944308828,1.36599264,2787.6,2786.2,0.1865]
[1763944309096,0.20662539,2787.5,2786.2,0.1865]
[1763944309258,0.90699264,2787.3,2785.7,0.5579]
[1763944309461,0.232,2787.2,2785.7,0.5579]
[1763944309660,0.232,2787.2,2785.3,0.194]
[1763944309661,5.02461231,2786.9,2785.3,0.194]
[1763944309857,0.6568,2786.8,2785.3,0.194]
[1763944310159,1.02714123,2786.7,2785.3,0.6519]
[1763944310565,0.459,2786.6,2785.3,0.6519]
[1763944310872,0.232,2786.5,2785.4,0.1]
[1763944311070,0.232,2786.5,2785.4,0.5579]
[1763944311490,0.691,2786.5,2785.4,0.5579]
[1763944311975,0.232,2786.5,2785.4,0.5579]
[1763944312164,0.459,2786.4,2785.4,0.5579]
[1763944313262,0.459,2786.4,2785.6,0.1]
[1763944313701,0.232,2786.5,2785.6,0.1]
[1763944313861,0.90699264,2787.3,2785.3,0.194]
[1763944313862,0.1978,2787.0,2786.4,0.1094]
[1763944314062,0.1978,2787.2,2786.4,0.1094]
[1763944314268,0.232,2787.1,2786.4,0.1094]
[1763944315001,0.232,2787.1,2786.3,0.1]
[1763944315157,0.459,2787.0,2786.1,0.194]
[1763944315361,0.232,2787.1,2786.1,0.7519]
[1763944315591,0.232,2787.1,2786.3,0.1]
[1763944316065,0.232,2787.1,2786.2,0.4579]
[1763944316292,0.691,2787.1,2786.1,0.194]
[1763944317002,0.691,2787.1,2785.3,0.195]
[1763944317003,0.459,2787.0,2785.5,0.4579]
[1763944317209,0.50385109,2787.0,2785.7,0.1]
[1763944317491,0.50385109,2787.0,2785.4,0.1]
[1763944317909,0.50385109,2787.0,2785.5,0.4579]
[1763944318084,0.50385109,2787.0,2785.7,0.1]
[1763944318320,0.50385109,2787.0,2785.4,0.1]
[1763944318599,0.50385109,2787.0,2785.3,0.195]
[1763944318787,0.2768527,2786.9,2785.3,0.6529]
[1763944318981,0.459,2786.8,2785.3,0.6529]
[1763944320700,0.90699264,2786.4,2785.3,0.001]
[1763944320901,0.6081,2785.4,2785.3,0.001]
[1763944321062,0.8401,2785.4,2785.3,0.001]
[1763944321271,0.232,2785.4,2785.3,0.001]
[1763944322007,10.824563,2784.7,2782.7,0.194]
[1763944322194,2.17556,2784.5,2782.7,0.194]
[1763944322393,3.20555064,2784.4,2782.9,0.1]
[1763944322594,3.71703464,2784.3,2782.9,0.5579]
[1763944322792,0.459,2784.2,2782.9,0.5579]
[1763944323820,1.02309619,2784.2,2782.7,0.194]
[1763944323983,0.56409619,2784.1,2782.8,0.4579]
[1763944324183,0.459,2784.7,2783.5,0.1]
[1763944324184,0.233,2784.0,2783.5,0.1]
[1763944324605,0.233,2784.0,2783.6,0.1094]
[1763944325122,0.233,2783.9,2783.7,0.5579]
[1763944325705,0.1978,2784.8,2783.7,0.4579]
[1763944326022,0.233,2784.7,2784.1,0.1]
[1763944326537,0.6568,2785.1,2784.2,0.6558]
[1763944326831,0.1978,2785.7,2784.3,0.1]
[1763944326832,0.233,2785.0,2784.3,0.1]
[1763944327490,0.233,2785.0,2784.3,0.5618]
[1763944328122,0.4838,2785.6,2784.3,0.5618]
[1763944328328,0.233,2785.5,2784.6,0.1]
[1763944328822,0.4838,2785.4,2784.2,0.294]
[1763944329288,0.04487846,2785.3,2784.2,0.294]
[1763944329633,0.4838,2785.2,2784.2,0.294]
[1763944330442,0.233,2785.5,2784.2,0.7558]
[1763944330641,0.1978,2785.7,2784.2,0.6558]
[1763944330642,0.233,2785.4,2784.2,0.6558]
[1763944330842,0.233,2785.4,2784.3,0.4618]
[1763944331069,0.52867846,2785.3,2784.2,0.194]
[1763944331378,0.90699264,2785.1,2783.6,0.5712]
[1763944331546,0.41615696,2785.0,2783.8,0.1]
[1763944331891,0.0448833,2785.0,2783.6,0.6712]
[1763944332172,0.4838,2784.9,2783.7,0.4618]
[1763944332347,0.04487846,2785.3,2783.7,0.4618]
[1763944332348,0.04487846,2785.3,2783.8,0.1]
[1763944332539,0.233,2785.2,2784.5,0.1]
[1763944332732,0.233,2785.2,2783.7,0.4618]
[1763944332978,0.233,2785.2,2784.2,0.1]
[1763944333517,0.6726,2786.0,2785.1,0.1879]
[1763944333866,0.233,2785.9,2785.2,0.1]
[1763944334488,0.1888,2786.0,2785.2,0.1]
[1763944334666,0.233,2785.9,2785.2,0.5618]
[1763944335404,0.002,2785.5,2785.2,0.5618]
[1763944335612,0.002,2785.5,2785.2,0.1]
[1763944335974,0.002,2785.5,2784.7,0.4618]
[1763944336378,0.4858,2785.5,2784.3,0.7442]
[1763944336694,0.04487685,2785.4,2784.3,0.1879]
[1763944337073,0.4838,2785.3,2784.3,0.1879]
[1763944337281,0.233,2785.2,2784.3,0.6497]
[1763944337483,0.233,2785.2,2784.5,0.0945]
[1763944337677,0.233,2785.2,2784.1,0.1879]
[1763944337678,0.04488169,2785.1,2784.1,0.1879]
[1763944337877,0.233,2785.0,2784.1,0.2824]
[1763944338192,0.002,2785.5,2784.4,0.0945]
[1763944338394,0.002,2785.5,2784.5,0.0945]
[1763944338395,0.233,2785.4,2784.5,0.0945]
[1763944338696,0.233,2785.4,2784.7,0.0945]
[1763944339074,0.233,2785.4,2785.0,69.331087]
[1763944339812,0.002,2785.5,2785.0,69.331087]
[1763944340015,0.002,2785.5,2785.1,0.6497]
[1763944340227,0.002,2785.5,2785.2,0.0945]
[1763944340528,0.002,2785.5,2785.2,0.5563]
[1763944340716,0.002,2785.5,2785.4,0.0945]
[1763944341328,0.002,2785.5,2785.4,0.5563]
[1763944342108,0.002,2785.8,2785.7,0.0945]
[1763944342487,0.002,2785.8,2785.7,0.5563]
[1763944343448,0.4838,2787.8,2785.8,0.90699264]
[1763944343595,0.232,2787.6,2786.8,0.0945]
[1763944343900,0.7158,2787.6,2786.7,0.1879]
[1763944344299,0.4838,2787.5,2786.3,0.0945]
[1763944344497,0.4838,2787.5,2786.4,0.0945]
[1763944344894,0.04484465,2787.4,2786.2,0.1879]
[1763944345095,0.4838,2787.5,2786.0,0.2283]
[1763944345304,0.232,2787.4,2786.3,0.0945]
[1763944345706,0.7158,2787.4,2786.3,0.0945]
[1763944346013,0.04484626,2787.3,2785.6,0.0945]
[1763944346221,0.1888,2786.4,2785.6,0.0945]
[1763944346420,0.232,2786.3,2785.6,0.0945]
[1763944347119,0.1888,2786.9,2786.2,0.1338]
[1763944347319,0.232,2786.8,2786.3,0.0945]
[1763944347823,0.232,2786.8,2786.3,0.5563]
[1763944348042,0.52865592,2786.7,2786.0,0.0945]
[1763944348247,29.00708791,2788.1,2788.0,22.85227835]
[1763944348547,33.98567258,2788.1,2788.0,16.29812434]
[1763944348751,33.98567258,2788.1,2788.0,9.64777081]
[1763944348950,35.28610998,2788.1,2788.0,2.97117932]
[1763944349245,10.86090898,2788.1,2788.0,2.97117932]
[1763944349438,37.48093798,2788.1,2788.0,2.97117932]
[1763944349748,22.554805,2788.0,2785.8,0.0945]
[1763944350047,9.044865,2787.4,2785.5,0.5563]
[1763944350241,0.90699264,2787.1,2785.5,0.5563]
[1763944350444,0.27677237,2787.0,2785.5,0.5563]
[1763944350646,0.27677237,2787.0,2785.5,0.4618]
[1763944350942,0.90699264,2786.5,2785.1,0.6497]
[1763944351146,0.5475648,2786.4,2785.1,0.6497]
[1763944351348,1.15129264,2786.9,2785.1,0.6497]
[1763944351349,0.28907237,2786.8,2785.1,0.6497]
[1763944351725,2.65649,2786.7,2785.1,0.6497]
[1763944351930,3.004006,2786.5,2785.1,0.6497]
[1763944352127,2.526006,2786.3,2785.1,0.1879]
[1763944352327,0.4763,2786.2,2785.0,69.331087]
[1763944352552,0.4763,2786.2,2785.1,0.001]
[1763944352729,0.2443,2786.1,2785.1,0.001]
[1763944352931,0.2443,2786.1,2785.1,0.1889]
[1763944353959,0.0556,2785.2,2785.1,0.001]
[1763944354169,0.2876,2785.2,2785.1,0.001]
[1763944354335,0.232,2785.2,2785.1,0.001]
[1763944357031,0.4763,2785.2,2785.1,0.001]
[1763944357440,0.0556,2785.5,2785.1,0.001]
[1763944357639,0.232,2785.2,2785.1,0.001]
[1763944358474,0.0556,2786.2,2785.1,2.06736571]
[1763944358641,0.232,2786.0,2785.4,0.4581]
[1763944358959,0.232,2786.0,2785.1,1.08626036]
[1763944359831,0.232,2785.9,2785.2,0.4871]
[1763944360026,0.232,2785.9,2785.1,1.08626036]
[1763944360231,0.04477237,2785.8,2785.1,0.001]
[1763944360623,0.232,2785.9,2785.1,0.199]
[1763944360962,0.232,2785.8,2785.1,4.20499647]
[1763944361628,0.232,2785.7,2785.1,4.20499647]
[1763944362329,0.232,2785.7,2785.1,0.199]
[1763944363272,0.232,2785.7,2785.1,0.6545]
[1763944363447,0.90699264,2786.1,2785.6,0.4573]
[1763944363648,0.232,2786.0,2785.6,0.4573]
[1763944363849,0.2463,2786.7,2785.6,0.9128]
[1763944364066,0.0556,2786.4,2785.6,0.9128]
[1763944364370,0.0556,2786.4,2785.2,0.4555]
[1763944364558,0.0556,2786.4,2785.2,3.97439647]
[1763944364762,0.0556,2786.4,2785.4,0.0945]
[1763944364962,0.232,2786.3,2785.4,0.0945]
[1763944365148,0.232,2786.3,2785.7,0.0945]
[1763944365540,0.0556,2786.6,2785.6,0.4555]
[1763944365759,0.232,2786.5,2785.6,0.4555]
[1763944366361,0.04477237,2786.4,2785.2,3.51889647]
[1763944366677,0.4763,2786.5,2785.3,0.92178965]
[1763944366991,0.232,2786.5,2785.6,0.0945]
[1763944367153,0.232,2786.4,2785.6,0.0945]
[1763944367358,0.04477237,2786.3,2785.6,0.55]
[1763944367746,0.232,2786.4,2785.6,0.55]
[1763944368374,0.04477237,2786.3,2785.3,0.92178965]
[1763944368557,0.232,2786.4,2785.3,0.82728965]
[1763944368879,0.232,2786.4,2785.4,0.4555]
[1763944369579,0.0556,2786.6,2785.4,0.85293965]
[1763944369764,0.232,2786.3,2785.5,0.4555]
[1763944370141,0.2443,2786.5,2785.5,0.4555]
[1763944370444,0.232,2786.4,2785.5,0.4555]
[1763944370853,0.0556,2786.6,2785.5,0.55]
[1763944371051,0.232,2786.3,2785.5,0.55]
[1763944371464,0.04477237,2786.2,2785.5,0.4555]
[1763944371661,0.232,2786.3,2785.2,3.51889647]
[1763944371974,0.232,2786.3,2785.3,0.87283965]
[1763944372150,0.232,2786.3,2785.3,0.96733965]
[1763944372356,0.232,2786.2,2785.4,0.4555]
[1763944375098,0.232,2786.2,2785.2,3.51889647]
[1763944375413,0.232,2786.2,2785.4,0.0945]
[1763944375563,0.232,2786.2,2785.4,0.50138965]
[1763944375763,0.232,2786.2,2785.4,0.95688965]
[1763944375975,0.232,2786.2,2785.4,0.4555]
[1763944376779,0.04477237,2786.1,2785.2,3.51889647]
[1763944377068,0.04477237,2786.1,2785.3,0.4555]
[1763944378279,0.78806023,2786.1,2785.1,0.199]
[1763944378478,1.00401882,2786.0,2785.1,0.199]
[1763944378684,0.04477237,2785.9,2785.1,0.199]
[1763944378884,0.49898786,2785.8,2785.1,0.199]
[1763944379101,1.00401882,2785.8,2785.1,0.199]
[1763944379311,0.50503096,2785.7,2785.1,0.001]
[1763944379469,0.4816743,2785.9,2785.1,2.80543919]
[1763944379868,0.50032399,2786.4,2785.1,2.80543919]
[1763944379869,0.232,2785.8,2785.2,0.4555]
[1763944380677,1.15129264,2786.4,2785.2,0.4555]
[1763944380974,0.232,2786.3,2785.7,0.4573]
[1763944381270,6.32,2786.5,2785.7,0.4573]
[1763944381488,0.2443,2785.8,2785.1,3.26093919]
[1763944381685,0.232,2785.7,2785.2,0.4555]
[1763944382004,0.232,2785.6,2785.2,0.55]
[1763944382190,0.232,2785.6,2785.2,0.4555]
[1763944382701,0.232,2785.6,2785.1,2.80543919]
[1763944383015,0.232,2785.6,2785.2,0.4555]
[1763944384181,0.4816743,2786.0,2785.2,1.55163809]
[1763944384482,0.232,2785.9,2785.2,1.55163809]
[1763944384688,0.90699264,2786.4,2785.3,0.4555]
[1763944384889,0.232,2786.3,2785.8,0.4573]
[1763944385198,0.002,2786.7,2786.3,0.6487]
[1763944385422,0.002,2786.7,2785.3,0.90699264]
[1763944385423,0.2443,2786.4,2785.3,0.90699264]
[1763944385625,0.232,2786.6,2785.8,0.4555]
[1763944385927,0.232,2786.5,2785.8,0.4555]
[1763944386094,0.232,2786.5,2785.8,0.55]
[1763944386523,0.232,2786.5,2785.8,0.4555]
[1763944387987,0.232,2786.4,2785.8,0.4555]
[1763944389367,0.232,2786.3,2785.9,0.0945]
[1763944389491,0.232,2786.3,2786.0,0.4759]
[1763944389906,0.002,2786.7,2786.2,0.4878]
[1763944390118,0.002,2786.7,2786.6,0.4878]
[1763944390425,0.002,2787.0,2786.6,0.5823]
[1763944390602,0.002,2787.0,2786.6,0.46928318]
[1763944390932,0.002,2787.0,2786.9,0.4878]
[1763944391119,0.002,2787.3,2786.9,0.4878]
[1763944391324,0.002,2787.3,2787.2,0.4878]
[1763944391496,0.002,2787.3,2787.2,0.5823]
[1763944391691,0.002,2787.3,2787.2,1.0582]
[1763944392231,0.002,2787.3,2787.2,0.9637]
[1763944392806,0.002,2787.3,2787.2,1.0582]
[1763944393862,0.002,2787.3,2787.2,0.9637]
[1763944394032,0.002,2787.3,2787.2,1.0582]
[1763944394779,0.002,2787.3,2787.2,0.9637]
[1763944394941,0.002,2787.3,2786.8,0.5704]
[1763944395286,0.002,2787.3,2786.8,0.4759]
[1763944395448,0.002,2787.3,2786.8,0.5704]
[1763944395834,0.002,2787.3,2786.5,0.0945]
[1763944396034,0.3039,2786.6,2785.5,0.4769]
[1763944397249,0.3039,2786.6,2785.5,0.001]
[1763944397446,0.232,2786.5,2785.8,0.4769]
[1763944397647,0.232,2786.5,2785.8,0.001]
[1763944398376,0.232,2786.5,2785.8,0.4769]
[1763944398672,0.232,2786.4,2785.8,0.4769]
[1763944398861,0.232,2786.4,2786.3,0.1849]
[1763944399365,0.232,2786.4,2786.1,0.1849]
[1763944399735,0.002,2787.3,2786.3,0.4878]
[1763944399935,0.002,2787.3,2786.7,0.4878]
[1763944400132,0.002,2787.3,2786.9,0.0945]
[1763944400657,0.002,2787.3,2786.9,0.4759]
[1763944401186,0.002,2787.3,2787.2,0.4878]
[1763944401354,0.2483,2787.0,2786.1,0.1849]
[1763944401555,0.2503,2787.3,2786.2,0.4759]
[1763944402090,0.232,2787.2,2786.2,0.4759]
[1763944402245,0.002,2787.3,2786.6,0.0945]